bitfinex/quotes_ETHUSD_20250328
["timestamp","ask_amount","ask_price","bid_price","bid_amount"]
[1743190005849,5.30551,1884.9,1884.6,5.028]
[1743190006054,11.36551,1884.9,1884.6,5.028]
[1743190006222,11.36551,1884.9,1884.6,19.528]
[1743190011453,11.36551,1884.9,1884.6,24.83415]
[1743190012250,6.06,1884.9,1884.6,30.1403]
[1743190012443,6.06,1884.9,1884.6,24.83415]
[1743190012922,11.36533,1884.9,1884.6,24.83415]
[1743190014956,6.06,1884.9,1884.6,24.83415]
[1743190015158,12.13812,1885.0,1884.6,30.14014]
[1743190015457,6.06,1885.0,1884.7,11.373]
[1743190015858,6.06,1885.0,1884.7,6.06723]
[1743190016629,11.36508,1885.0,1884.8,14.5]
[1743190019163,6.06,1885.0,1884.8,14.5]
[1743190020061,6.06,1885.0,1884.8,19.80545]
[1743190020251,6.06,1885.1,1885.0,6.08573]
[1743190020565,11.36401,1885.4,1885.1,5.30473]
[1743190021059,6.06,1885.4,1885.2,25.10864]
[1743190021442,6.06,1885.4,1885.2,19.80429]
[1743190021839,6.06,1885.4,1885.2,14.5]
[1743190022461,6.06,1885.4,1885.2,19.80446]
[1743190022665,6.06,1885.4,1885.2,21.46880286]
[1743190022963,6.06,1885.4,1885.3,6.11159]
[1743190023353,17.05773511,1885.7,1885.3,6.11159]
[1743190023664,6.06,1885.7,1885.4,5.30372]
[1743190023966,6.06,1885.7,1885.4,10.33067]
[1743190024165,6.06,1885.7,1885.4,11.98020002]
[1743190024461,6.06,1885.7,1885.5,5.3036]
[1743190026268,6.06,1885.7,1885.6,14.5]
[1743190026747,5.30281,1885.8,1885.6,14.5]
[1743190026748,11.36281,1885.8,1885.6,14.5]
[1743190027132,11.36281,1885.8,1885.4,10.33087]
[1743190027336,5.30307,1885.7,1885.4,10.33087]
[1743190027674,5.30307,1885.7,1885.5,14.5]
[1743190027837,5.30335,1885.6,1885.5,14.5]
[1743190028037,5.30377,1885.5,1885.3,5.026]
[1743190028535,5.30377,1885.5,1885.4,14.5]
[1743190030070,5.30437,1885.3,1885.0,5.026]
[1743190030250,11.36437,1885.3,1885.0,5.026]
[1743190030567,5.30451,1885.2,1885.1,14.5]
[1743190030949,6.06691,1885.2,1885.1,14.5]
[1743190032665,6.06,1885.3,1885.1,14.5]
[1743190032871,6.06,1885.3,1885.1,15.3035]
[1743190033169,6.06,1885.3,1885.1,20.60823]
[1743190034060,6.06,1885.3,1885.1,15.3035]
[1743190034241,6.06,1885.3,1885.1,14.5]
[1743190035573,11.36402,1885.4,1885.1,14.5]
[1743190036143,6.06,1885.4,1885.1,14.5]
[1743190036343,11.36392,1885.4,1885.1,14.5]
[1743190040372,6.06,1885.4,1885.1,19.80464]
[1743190040575,6.06,1885.4,1885.2,5.30444]
[1743190041161,6.06,1885.4,1885.3,14.5]
[1743190041560,12.13502,1885.6,1885.3,14.5]
[1743190043075,12.13502,1885.6,1885.3,19.80418]
[1743190043275,11.36342,1885.6,1885.3,20.62128]
[1743190043477,11.36345,1885.6,1885.3,15.3171]
[1743190043685,11.36346,1885.6,1885.3,15.3171]
[1743190046282,11.36346,1885.6,1885.3,20.62128]
[1743190047501,11.36346,1885.6,1885.3,15.3171]
[1743190048958,5.30372,1885.5,1885.3,14.5]
[1743190049655,5.30391,1885.4,1885.3,14.5]
[1743190049886,6.12722,1885.5,1885.3,14.5]
[1743190052985,9.12738417,1885.4,1885.3,14.5]
[1743190053188,5.3053,1885.0,1884.6,6.07389]
[1743190053484,5.30479,1885.1,1884.7,38.40078]
[1743190053874,5.30504,1885.0,1884.7,38.40078]
[1743190054061,4.58907417,1885.3,1884.9,0.7678]
[1743190054062,5.3045,1885.2,1884.9,0.7678]
[1743190054261,5.30422,1885.3,1884.9,6.07306]
[1743190054562,8.30422,1885.3,1885.0,14.5]
[1743190055169,5.30457,1885.2,1885.0,14.5]
[1743190055369,10.60925,1885.2,1885.0,14.5]
[1743190055987,5.30457,1885.2,1885.0,14.5]
[1743190056687,10.6093,1885.2,1885.0,14.5]
[1743190058308,10.60926,1885.2,1885.0,14.5]
[1743190058511,5.30457,1885.2,1885.0,14.5]
[1743190059710,10.60932,1885.2,1885.0,14.5]
[1743190064016,5.30457,1885.2,1885.0,14.5]
[1743190065515,10.60926,1885.2,1885.0,14.5]
[1743190068189,5.30457,1885.2,1885.0,14.5]
[1743190068716,8.3042,1885.3,1885.0,14.5]
[1743190068900,8.30421,1885.3,1885.0,19.80491]
[1743190069214,8.30421,1885.3,1885.0,22.392712]
[1743190070116,13.6086,1885.3,1885.0,17.087802]
[1743190070418,13.6086,1885.3,1885.0,14.5]
[1743190070584,8.30421,1885.3,1885.0,14.5]
[1743190071116,8.30421,1885.3,1885.1,5.025]
[1743190071810,8.30421,1885.3,1885.2,14.5]
[1743190072912,5.30486,1885.1,1884.7,5.30575]
[1743190073119,5.30486,1885.1,1884.7,11.474564]
[1743190073488,5.30486,1885.1,1884.7,25.974564]
[1743190073685,10.60981,1885.1,1884.7,25.974564]
[1743190073940,5.30504,1885.0,1884.7,25.974564]
[1743190077924,5.30504,1885.0,1884.7,25.974564]
[1743190080425,5.30486,1885.1,1884.7,25.974564]
[1743190080725,5.30486,1885.1,1884.7,31.280294]
[1743190081092,5.30486,1885.1,1884.7,25.974544]
[1743190081703,10.60979,1885.1,1884.7,25.974544]
[1743190082107,3.0,1885.2,1884.8,8.6626044]
[1743190082421,3.0,1885.2,1884.9,5.30513]
[1743190082823,3.0,1885.2,1885.0,14.5]
[1743190084198,8.3045,1885.2,1885.0,14.5]
[1743190084397,5.30475,1885.1,1885.0,14.5]
[1743190084627,9.0969,1885.2,1885.0,14.5]
[1743190085015,5.30475,1885.1,1885.0,14.5]
[1743190085336,5.30475,1885.1,1884.8,5.30556]
[1743190085700,5.30475,1885.1,1884.9,14.5]
[1743190089503,5.30503,1885.0,1884.9,14.5]
[1743190091230,10.61028,1885.0,1884.7,5.024]
[1743190091803,10.61028,1885.0,1884.8,14.5]
[1743190092740,5.30503,1885.0,1884.8,14.5]
[1743190092940,5.30478,1885.1,1884.8,14.5]
[1743190093141,5.30478,1885.1,1884.8,19.8056]
[1743190093341,3.0,1885.2,1884.9,6.08753]
[1743190093525,3.0,1885.2,1885.0,5.30492]
[1743190093728,6.06,1885.4,1885.1,5.30457]
[1743190093919,6.06,1885.4,1885.2,15.2686]
[1743190094350,3.0,1885.4,1885.2,15.2686]
[1743190094736,8.30393,1885.4,1885.2,14.5]
[1743190095133,6.06,1885.5,1885.3,0.8176]
[1743190096119,6.06,1885.5,1885.4,14.5]
[1743190096319,12.18243,1885.6,1885.4,14.5]
[1743190096620,11.36343,1885.6,1885.4,14.5]
[1743190099220,16.66702,1885.6,1885.4,14.5]
[1743190099422,11.36343,1885.6,1885.4,14.5]
[1743190099676,11.36343,1885.6,1885.3,0.8176]
[1743190099857,11.36343,1885.6,1885.3,1.6780787]
[1743190100172,11.36343,1885.6,1885.3,16.1780787]
[1743190102030,11.36343,1885.6,1885.3,21.4822487]
[1743190102858,6.06,1885.6,1885.3,26.7862887]
[1743190103021,6.06,1885.7,1885.3,16.1780787]
[1743190103348,6.06,1885.7,1885.5,5.3036]
[1743190104461,6.06,1885.7,1885.4,6.92147787]
[1743190105753,11.36308,1885.7,1885.4,6.92147787]
[1743190106361,12.18238,1885.7,1885.3,16.1780787]
[1743190106559,12.18238,1885.7,1885.3,20.6646287]
[1743190106858,17.48565,1885.7,1885.3,20.6646287]
[1743190108562,12.18238,1885.7,1885.3,20.6646287]
[1743190109669,12.18238,1885.7,1885.3,25.9686487]
[1743190109670,11.36308,1885.7,1885.3,25.9686487]
[1743190110460,11.36308,1885.7,1885.4,5.30379]
[1743190110668,6.06,1885.7,1885.5,6.11158]
[1743190110834,6.06,1885.7,1885.5,6.11148]
[1743190111035,6.06,1885.7,1885.6,14.5]
[1743190114737,11.81441258,1885.9,1885.6,14.5]
[1743190114934,0.05,1885.9,1885.7,0.7981]
[1743190115133,0.05,1885.9,1885.8,5.30278]
[1743190115547,0.05,1885.9,1885.8,19.80278]
[1743190119472,0.05,1885.9,1885.8,20.57368]
[1743190129277,0.05,1885.9,1885.8,24.82278]
[1743190129476,0.05,1885.9,1885.8,27.835348]
[1743190139853,0.05,1885.9,1885.8,28.592748]
[1743190142306,0.05,1885.9,1885.8,29.65491506]
[1743190142860,0.05,1885.9,1885.8,28.592748]
[1743190147889,0.05,1885.9,1885.8,27.835348]
[1743190149591,0.05,1885.9,1885.8,28.635348]
[1743190170812,0.05,1885.9,1885.8,27.835348]
[1743190178914,0.05,1885.9,1885.8,28.610048]
[1743190179119,0.8073,1886.4,1886.3,5.30138]
[1743190179281,0.8073,1886.4,1886.3,11.378673]
[1743190179689,0.8073,1886.4,1886.3,25.878673]
[1743190180121,6.855,1886.6,1886.5,5.30082]
[1743190182218,0.795,1886.6,1886.5,5.30082]
[1743190183222,0.795,1886.6,1886.5,19.80082]
[1743190184121,0.795,1886.6,1886.3,11.378673]
[1743190184318,0.7565,1886.5,1886.3,5.017]
[1743190184525,0.7565,1886.4,1886.3,5.017]
[1743190186319,0.7565,1886.4,1886.3,10.31838]
[1743190187826,3.7707,1886.7,1886.3,5.017]
[1743190188131,3.7707,1886.7,1886.5,5.3007]
[1743190188132,0.7707,1886.7,1886.5,5.3007]
[1743190189135,0.7707,1886.7,1886.6,14.5]
[1743190190348,6.8307,1887.0,1886.7,5.30024]
[1743190190519,6.8307,1887.0,1886.7,10.31606]
[1743190191032,6.8307,1887.0,1886.8,14.5]
[1743190192298,6.8307,1887.0,1886.8,19.79995]
[1743190192528,6.8307,1887.0,1886.8,17.511601]
[1743190195152,6.8307,1887.0,1886.8,3.011601]
[1743190195353,6.8307,1887.0,1886.7,5.016]
[1743190195801,6.8307,1887.0,1886.8,14.5]
[1743190197504,6.8307,1887.0,1886.7,5.016]
[1743190199421,6.8307,1887.0,1886.7,10.31604]
[1743190199850,6.8307,1887.0,1886.8,14.5]
[1743190200039,12.13015,1887.0,1886.8,14.5]
[1743190200549,6.8307,1887.0,1886.7,10.31614]
[1743190200734,6.8307,1887.0,1886.7,11.877792]
[1743190200917,12.13014,1887.0,1886.7,26.377792]
[1743190201319,6.8307,1887.0,1886.7,26.377792]
[1743190202115,12.13014,1887.0,1886.7,26.377792]
[1743190202320,6.8307,1887.0,1886.7,21.077652]
[1743190202547,6.8307,1887.0,1886.8,2.1077652]
[1743190203031,6.8307,1887.0,1886.7,24.81625]
[1743190203427,6.8307,1887.0,1886.7,19.516]
[1743190203748,0.8303,1886.8,1886.7,14.5]
[1743190203948,6.13027,1886.8,1886.7,19.515]
[1743190204152,6.13027,1886.8,1886.7,14.5]
[1743190204556,6.13027,1886.8,1886.7,19.514]
[1743190205357,6.13027,1886.8,1886.7,14.5]
[1743190205855,0.8303,1886.8,1886.7,14.5]
[1743190206056,6.13027,1886.8,1886.7,14.5]
[1743190206631,0.8303,1886.8,1886.7,14.5]
[1743190207060,6.13027,1886.8,1886.7,14.5]
[1743190208642,6.13027,1886.8,1886.5,5.014]
[1743190209155,6.13027,1886.8,1886.6,14.5]
[1743190209852,11.4305,1886.8,1886.6,14.5]
[1743190210047,9.1096699,1886.8,1886.6,14.5]
[1743190210253,9.9297499,1886.7,1886.6,14.5]
[1743190210568,6.12005,1886.7,1886.6,14.5]
[1743190211663,5.30056,1886.6,1886.4,5.014]
[1743190212362,6.13438,1886.3,1886.0,5.29101407]
[1743190212745,5.30168,1886.2,1886.1,14.5]
[1743190213834,9.1113799,1886.2,1886.1,14.5]
[1743190214047,18.9503799,1886.2,1886.1,14.5]
[1743190214366,5.30222,1886.0,1885.9,5.014]
[1743190214880,5.30222,1886.0,1885.9,19.514]
[1743190215078,5.30198,1886.1,1885.9,19.514]
[1743190215566,10.60413,1886.1,1885.9,19.514]
[1743190216362,9.839,1886.2,1885.9,19.514]
[1743190216585,6.839,1886.2,1885.9,21.74253169]
[1743190216738,12.14067,1886.2,1885.9,21.74253169]
[1743190218157,12.14067,1886.2,1885.9,19.79113169]
[1743190219366,6.06,1886.2,1885.9,25.92278169]
[1743190219741,11.36169,1886.2,1885.9,25.92278169]
[1743190220570,11.36169,1886.2,1885.9,25.09338169]
[1743190222775,6.06,1886.2,1885.9,30.39578169]
[1743190222952,6.06,1886.2,1886.0,8.34165817]
[1743190223359,20.41882,1886.4,1886.0,8.34165817]
[1743190223678,24.2285199,1886.4,1886.1,14.5]
[1743190223865,15.11752,1886.4,1886.1,14.5]
[1743190224452,18.9272199,1886.4,1886.1,14.5]
[1743190224778,18.9272199,1886.4,1886.1,19.80193]
[1743190224952,18.9272199,1886.4,1886.1,15.52167054]
[1743190225156,9.1111299,1886.3,1886.0,8.34171817]
[1743190225876,3.8096999,1886.1,1885.9,0.27713169]
[1743190226047,15.1695599,1886.2,1885.8,10.31764]
[1743190227568,5.30196,1886.1,1885.8,5.015]
[1743190229250,5.30196,1886.1,1885.9,14.5]
[1743190230279,9.1116599,1886.1,1885.9,14.5]
[1743190231082,14.4138099,1886.1,1885.8,5.015]
[1743190231605,9.1116599,1886.1,1885.8,19.515]
[1743190232796,9.1116599,1886.1,1885.8,19.79212014]
[1743190233900,5.30196,1886.1,1885.8,19.79212014]
[1743190234559,10.60409,1886.1,1885.8,19.79212014]
[1743190234902,5.30196,1886.1,1885.8,19.79212014]
[1743190235064,10.60409,1886.1,1885.8,19.79212014]
[1743190235268,5.30196,1886.1,1885.8,19.79212014]
[1743190235898,9.1120599,1886.0,1885.8,14.77712014]
[1743190236060,9.9321399,1885.9,1885.6,5.015]
[1743190236399,15.2348799,1885.9,1885.6,5.015]
[1743190236606,9.9321399,1885.9,1885.6,19.515]
[1743190236826,15.2348099,1885.9,1885.6,19.515]
[1743190236987,9.9321399,1885.9,1885.6,19.515]
[1743190237182,15.2348299,1885.9,1885.6,19.515]
[1743190237389,9.9321399,1885.9,1885.6,19.515]
[1743190238420,6.12244,1885.9,1885.6,19.515]
[1743190238621,0.8198,1885.9,1885.6,27.57720522]
[1743190238828,9.9336899,1886.0,1885.6,27.57711522]
[1743190239127,9.9336899,1886.0,1885.7,5.30305]
[1743190239946,15.2361599,1886.0,1885.6,27.57711522]
[1743190240149,9.1122899,1885.9,1885.6,25.09526922]
[1743190240450,9.1124899,1885.8,1885.6,14.77713922]
[1743190240599,9.1127699,1885.7,1885.3,38.37516]
[1743190240800,3.8096999,1885.5,1885.3,38.37516]
[1743190241001,3.8096999,1885.4,1885.3,33.071]
[1743190242822,9.9279199,1885.4,1885.0,5.30491]
[1743190243011,3.8096999,1885.3,1885.1,5.015]
[1743190243413,3.8096999,1885.3,1885.2,14.5]
[1743190243731,9.9279199,1885.4,1885.2,14.5]
[1743190243932,4.6238999,1885.4,1885.2,14.5]
[1743190244136,0.8142,1885.4,1885.2,14.5]
[1743190244304,9.1133399,1885.5,1885.2,14.5]
[1743190244697,3.8096999,1885.5,1885.2,19.80437]
[1743190244924,3.0,1885.6,1885.4,5.3038]
[1743190245125,3.0,1885.7,1885.4,5.3038]
[1743190245333,3.0,1885.7,1885.5,5.30357]
[1743190245635,6.8096999,1885.8,1885.6,14.5]
[1743190245835,3.0,1885.8,1885.6,19.80332]
[1743190246136,3.0,1885.8,1885.6,16.27465174]
[1743190247103,3.0,1885.8,1885.6,1.77465174]
[1743190247534,3.0,1885.8,1885.6,16.27465174]
[1743190248528,6.8096999,1885.8,1885.6,1.77465174]
[1743190248704,6.8096999,1885.8,1885.5,16.39875]
[1743190248906,6.8096999,1885.8,1885.5,30.89875]
[1743190249543,6.8096999,1885.8,1885.5,16.39875]
[1743190250035,11.36255,1885.9,1885.8,6.07598]
[1743190250036,6.06,1885.9,1885.8,6.07598]
[1743190250239,16.0038999,1886.2,1885.8,6.07598]
[1743190250540,3.8096999,1886.1,1885.8,6.07598]
[1743190251324,3.8096999,1886.0,1885.7,5.30302]
[1743190251517,3.8096999,1885.9,1885.6,6.07651]
[1743190251928,3.8096999,1885.9,1885.7,5.30299]
[1743190252436,3.8096999,1886.0,1885.7,10.60595]
[1743190252644,3.8096999,1886.0,1885.7,5.30296]
[1743190252812,3.8096999,1886.0,1885.7,5.30294]
[1743190253005,3.8096999,1886.0,1885.6,21.685871]
[1743190253208,3.8096999,1886.0,1885.7,7.4715471]
[1743190253736,9.9356599,1886.1,1885.7,7.4715471]
[1743190255944,9.9356599,1886.1,1885.7,12.7744971]
[1743190256244,9.9356599,1886.1,1885.7,7.4715371]
[1743190256648,9.9356599,1886.1,1885.7,12.7744271]
[1743190257316,9.9356599,1886.1,1885.7,7.4714771]
[1743190258310,9.9356599,1886.1,1885.7,12.7743771]
[1743190258513,3.8096999,1886.0,1885.7,5.30289]
[1743190259414,3.8096999,1886.0,1885.7,10.60579]
[1743190259615,3.8096999,1886.0,1885.8,5.30276]
[1743190259815,9.9356599,1886.1,1885.8,5.30276]
[1743190261777,4.6336999,1886.1,1885.8,10.60539]
[1743190261946,3.8096999,1886.1,1885.8,5.30263]
[1743190262354,3.0,1886.1,1885.8,10.60525]
[1743190263353,3.0,1886.1,1885.8,5.30262]
[1743190263754,12.1116799,1886.1,1885.8,5.30262]
[1743190263956,6.8096999,1886.1,1885.8,10.60523]
[1743190264157,3.0,1886.1,1885.8,10.60523]
[1743190264660,3.0,1886.1,1885.9,5.30246]
[1743190265224,6.8096999,1886.1,1885.8,5.30276]
[1743190265759,6.8096999,1886.1,1885.8,10.60542]
[1743190266155,6.8096999,1886.1,1885.8,5.30266]
[1743190266773,6.8096999,1886.1,1885.8,10.60532]
[1743190267260,6.8096999,1886.1,1885.8,5.30261]
[1743190268033,12.1116699,1886.1,1885.8,5.30261]
[1743190268244,12.1116699,1886.1,1885.4,14.5]
[1743190268245,3.8096999,1885.9,1885.4,5.30366]
[1743190268550,4.5605999,1885.7,1885.4,11.11509]
[1743190268745,3.8096999,1885.8,1885.6,5.30328]
[1743190268936,7.5605999,1885.9,1885.6,5.30328]
[1743190269139,3.8096999,1885.8,1885.5,5.30362]
[1743190269439,3.8096999,1885.7,1885.4,16.41882]
[1743190270558,6.06726,1885.6,1885.3,5.30414]
[1743190270758,9.8769599,1885.6,1885.2,5.30434]
[1743190271060,9.8769599,1885.6,1885.2,10.60866]
[1743190271256,9.8769599,1885.6,1885.2,10.60867]
[1743190271661,3.8096999,1885.4,1885.1,11.40814948]
[1743190271857,5.30363,1885.5,1885.1,16.71272948]
[1743190271858,9.1133299,1885.5,1885.1,16.71272948]
[1743190274333,9.1133299,1885.5,1885.2,5.30446]
[1743190275256,9.1133299,1885.5,1885.1,11.40801948]
[1743190275565,9.1133299,1885.5,1885.1,16.71261948]
[1743190275769,9.1133299,1885.5,1885.1,16.71260948]
[1743190276061,9.1133299,1885.5,1885.1,11.40800948]
[1743190276358,3.8096999,1885.5,1885.2,5.30442]
[1743190277366,9.1133499,1885.5,1885.2,5.30442]
[1743190277736,15.9369599,1885.6,1885.2,10.60874]
[1743190277936,15.1730599,1885.6,1885.3,5.30415]
[1743190278133,15.1730599,1885.6,1885.2,5.30432]
[1743190278875,9.9239699,1885.4,1885.1,0.27701948]
[1743190279078,3.0,1885.5,1884.9,5.014]
[1743190279079,9.1142899,1885.2,1884.9,5.014]
[1743190279368,3.8096999,1885.1,1884.8,5.30558]
[1743190279580,3.8096999,1885.1,1884.8,19.80558]
[1743190279887,9.1147399,1885.0,1884.7,33.8356]
[1743190280058,3.8096999,1885.1,1884.7,39.14141]
[1743190280385,15.9843699,1885.2,1884.8,5.30544]
[1743190280580,21.2890599,1885.2,1884.8,5.30544]
[1743190281041,15.9843699,1885.2,1884.8,5.30544]
[1743190281247,15.9843699,1885.2,1884.8,5.3054]
[1743190282481,3.8096999,1885.1,1884.8,5.3054]
[1743190283973,15.9843699,1885.2,1884.8,5.3054]
[1743190284179,5.30476,1885.1,1884.7,48.62746]
[1743190284389,5.30476,1885.1,1884.7,39.44618457]
[1743190284696,5.30476,1885.1,1884.8,5.30558]
[1743190284865,5.30476,1885.1,1884.8,19.80558]
[1743190285290,5.30476,1885.1,1884.8,14.5]
[1743190285581,9.1144599,1885.1,1884.8,14.5]
[1743190289184,3.8096999,1885.1,1884.8,14.5]
[1743190289367,21.2890599,1885.2,1884.8,19.8056]
[1743190289967,5.30478,1885.1,1884.8,14.5]
[1743190291087,15.9843799,1885.2,1884.8,14.5]
[1743190291088,9.8892899,1885.0,1884.8,14.5]
[1743190291298,5.30532,1884.9,1884.8,14.5]
[1743190291659,14.4205599,1884.9,1884.5,5.30635]
[1743190291862,3.8096999,1884.8,1884.5,10.32135]
[1743190292172,3.8096999,1884.8,1884.6,14.5]
[1743190292368,15.1750199,1884.9,1884.6,14.5]
[1743190292572,9.9177799,1884.7,1884.4,5.775]
[1743190292784,3.8096999,1884.6,1884.4,5.775]
[1743190292993,3.8096999,1884.6,1884.4,5.015]
[1743190293881,9.9177799,1884.7,1884.4,5.015]
[1743190297124,3.8096999,1884.6,1884.3,6.07972]
[1743190298214,4.6116999,1884.7,1884.4,5.30667]
[1743190298510,4.6116999,1884.7,1884.4,10.61325]
[1743190298706,4.6116999,1884.7,1884.4,5.30658]
[1743190298905,6.06,1884.9,1884.5,0.7513]
[1743190299105,6.06,1884.9,1884.8,0.7513]
[1743190299997,6.06,1884.9,1884.7,5.30573]
[1743190300411,9.8696999,1884.9,1884.7,5.30573]
[1743190300781,6.06,1884.9,1884.7,5.3057]
[1743190300990,6.06,1884.9,1884.8,5.3056]
[1743190301787,6.06,1884.9,1884.8,6.0936]
[1743190301991,6.06,1884.9,1884.8,7.23353]
[1743190302631,9.06,1885.2,1884.9,5.30527]
[1743190302932,12.8696999,1885.2,1884.9,5.30527]
[1743190303709,3.8096999,1885.1,1884.8,7.23348]
[1743190303878,0.8094,1885.0,1884.8,5.30555]
[1743190304323,4.6190999,1885.1,1884.8,5.30555]
[1743190305116,3.8096999,1885.1,1884.8,5.30549]
[1743190307486,9.1144699,1885.1,1884.8,5.30549]
[1743190307887,3.8096999,1885.0,1884.7,6.06031]
[1743190308089,3.8096999,1885.0,1884.7,7.698454]
[1743190308415,3.8096999,1885.0,1884.7,2.392644]
[1743190308712,9.1149299,1885.0,1884.7,0.7545]
[1743190309015,5.30598,1884.7,1884.3,11.09774]
[1743190309221,15.1754099,1884.8,1884.4,5.3067]
[1743190309510,6.06,1884.8,1884.6,6.12101]
[1743190309716,6.06,1884.8,1884.6,11.42702]
[1743190309907,6.06,1884.8,1884.6,11.42698]
[1743190312533,6.06,1884.8,1884.6,6.12097]
[1743190313024,6.06,1884.8,1884.6,11.42696]
[1743190314219,6.06,1884.9,1884.7,5.30588]
[1743190314397,15.1748399,1885.0,1884.7,5.30588]
[1743190315120,15.1748399,1885.0,1884.7,5.30575]
[1743190315121,9.8696999,1885.0,1884.7,5.30575]
[1743190316118,15.1747599,1885.0,1884.7,5.30575]
[1743190317211,9.8696999,1885.0,1884.7,5.30575]
[1743190318328,15.1747399,1885.0,1884.7,5.30575]
[1743190318697,9.8696999,1885.0,1884.7,5.30575]
[1743190318893,6.06,1885.0,1884.8,5.30542]
[1743190319112,6.06,1885.0,1884.9,0.827]
[1743190320127,18.1742599,1885.2,1884.9,0.827]
[1743190320328,9.06,1885.2,1884.9,6.13213]
[1743190320644,9.06,1885.2,1885.0,5.30493]
[1743190321031,9.06,1885.2,1884.9,6.13213]
[1743190321428,18.1742199,1885.2,1884.9,6.13213]
[1743190322313,12.8696999,1885.2,1884.9,6.13213]
[1743190325217,18.1742199,1885.2,1884.9,6.13213]
[1743190325641,12.8696999,1885.2,1884.9,6.13213]
[1743190325938,6.06,1885.2,1885.1,5.30475]
[1743190326811,6.06,1885.2,1885.0,5.30479]
[1743190327009,3.8096999,1885.1,1884.7,6.0823]
[1743190327205,9.9474599,1884.9,1884.5,6.08292]
[1743190327544,9.9474599,1884.9,1884.5,5.30632]
[1743190327545,3.8096999,1884.8,1884.5,5.30632]
[1743190327720,9.9474599,1884.9,1884.5,5.30632]
[1743190328037,4.6419999,1884.9,1884.5,5.30632]
[1743190328342,10.92475352,1884.9,1884.5,5.30632]
[1743190328909,5.30561,1884.8,1884.5,5.30632]
[1743190329109,14.4211499,1884.8,1884.4,5.30671]
[1743190329436,9.1153099,1884.8,1884.4,5.30658]
[1743190329863,9.1153099,1884.8,1884.4,10.61316]
[1743190330013,5.30561,1884.8,1884.4,10.61316]
[1743190330214,16.23013352,1884.9,1884.5,5.30642]
[1743190332647,5.30566,1884.8,1884.5,5.30642]
[1743190333243,1.80960362,1884.9,1884.6,5.30597]
[1743190333417,3.0,1885.0,1884.7,0.8208]
[1743190333611,3.0,1885.0,1884.7,6.12644]
[1743190333846,6.06,1885.1,1884.8,5.30548]
[1743190334416,6.06,1885.1,1884.8,10.61097]
[1743190334816,6.06,1885.1,1884.8,5.30548]
[1743190336885,11.36476,1885.1,1884.8,5.30548]
[1743190338149,3.8096999,1884.9,1884.7,5.014]
[1743190338336,9.9274999,1884.8,1884.4,15.62614]
[1743190338531,6.1178,1884.8,1884.4,10.31957]
[1743190339347,0.8122,1884.8,1884.6,5.30616]
[1743190339544,15.9824099,1885.1,1884.7,5.30588]
[1743190339744,21.2873699,1885.1,1884.7,5.30588]
[1743190340042,5.30513,1885.0,1884.6,6.10205]
[1743190340351,5.30513,1885.0,1884.6,11.40803]
[1743190340552,5.30513,1885.0,1884.6,12.548833]
[1743190340729,5.30513,1885.0,1884.6,7.242683]
[1743190340929,12.17271,1885.1,1884.7,5.30562]
[1743190341130,15.9824099,1885.1,1884.7,5.30562]
[1743190342023,21.2873599,1885.1,1884.7,5.30562]
[1743190342351,5.30505,1885.0,1884.7,5.30562]
[1743190343061,9.1147499,1885.0,1884.6,12.548813]
[1743190343362,9.1147499,1885.0,1884.7,5.30585]
[1743190343652,5.30505,1885.0,1884.7,5.30585]
[1743190344847,12.17271,1885.1,1884.7,10.61151]
[1743190345153,12.17271,1885.1,1884.7,10.61137]
[1743190345955,11.36479,1885.1,1884.8,5.30556]
[1743190346651,16.66976,1885.1,1884.7,6.5606073]
[1743190346842,5.30517,1885.0,1884.6,6.10203]
[1743190347031,14.4200999,1885.0,1884.6,6.10192]
[1743190347229,9.1148699,1885.0,1884.6,6.10192]
[1743190347647,9.1148699,1885.0,1884.6,11.4079]
[1743190347851,5.30517,1885.0,1884.6,11.4079]
[1743190348156,5.30517,1885.0,1884.6,11.40793]
[1743190348553,5.30517,1885.0,1884.6,6.10188]
[1743190348724,5.30517,1885.0,1884.6,11.40787]
[1743190348925,5.30536,1884.9,1884.6,6.10188]
[1743190349125,5.30536,1884.9,1884.5,6.08647]
[1743190349373,5.30562,1884.8,1884.5,6.08647]
[1743190349960,3.8096999,1884.7,1884.3,6.39717738]
[1743190350146,3.8096999,1884.7,1884.2,28.076]
[1743190350147,9.8696999,1884.7,1884.2,28.076]
[1743190350460,10.61366,1884.4,1884.1,5.063]
[1743190350960,10.61371,1884.4,1884.1,5.063]
[1743190351907,5.30674,1884.4,1884.1,5.063]
[1743190352029,5.30701,1884.3,1884.1,5.063]
[1743190352339,5.30674,1884.4,1884.1,5.063]
[1743190352524,4.6119999,1884.5,1884.1,10.37039]
[1743190352729,6.10891,1884.5,1884.1,15.67778]
[1743190352960,9.09192,1884.6,1884.2,5.3071]
[1743190353129,9.09192,1884.6,1884.3,5.30699]
[1743190353940,9.09179,1884.6,1884.2,6.08285]
[1743190354162,9.09179,1884.6,1884.2,6.08276]
[1743190355538,3.7855,1884.6,1884.3,5.30679]
[1743190355769,9.09167,1884.6,1884.3,5.30679]
[1743190355970,9.09167,1884.6,1884.3,19.80679]
[1743190356688,9.09167,1884.6,1884.3,5.30679]
[1743190357391,3.7855,1884.6,1884.3,10.61362]
[1743190357591,6.06,1884.7,1884.4,5.30655]
[1743190357791,3.0,1884.7,1884.4,10.61311]